lending/lending_fUSD_20241212
["ID","MTS","AMOUNT","RATE_DAILY","PERIOD"]
[345068156,1733974233871,-150.0,0.00011093,2]
[345068157,1733974233882,-167.08307074,0.00011096,2]
[345068158,1733974233891,-502.29225982,0.00011097,2]
[345068159,1733974233901,-590.09,0.00011097,2]
[345068160,1733974233911,-366.45,0.00011097,2]
[345068161,1733974233921,-500.0,0.00011097,2]
[345068162,1733974233930,-500.0,0.00011097,2]
[345068163,1733974233940,-500.0,0.00011097,2]
[345068164,1733974233949,-15808.82086369,0.00011098,2]
[345068165,1733974233959,-500.0,0.00011098,2]
[345068166,1733974233970,-500.0,0.00011098,2]
[345068167,1733974233984,-500.0,0.00011098,2]
[345068168,1733974233993,-503.73767815,0.00011098,2]
[345068169,1733974234003,-500.0,0.00011098,2]
[345068170,1733974234012,-500.0,0.00011098,2]
[345068171,1733974234022,-159.87,0.00011098,2]
[345068172,1733974234032,-500.0,0.00011098,2]
[345068173,1733974234041,-500.0,0.00011098,2]
[345068174,1733974234052,-286.56,0.00011098,2]
[345068175,1733974234063,-500.0,0.00011098,2]
[345068176,1733974234072,-500.0,0.00011098,2]
[345068177,1733974234082,-500.0,0.00011098,2]
[345068178,1733974234091,-500.0,0.00011098,2]
[345068179,1733974234101,-500.0,0.00011098,2]
[345068180,1733974234110,-500.0,0.00011098,2]
[345068181,1733974234120,-500.0,0.00011098,2]
[345068182,1733974234129,-500.0,0.00011098,2]
[345068183,1733974234138,-500.0,0.00011098,2]
[345068184,1733974234148,-500.0,0.00011098,2]
[345068185,1733974234157,-500.0,0.00011098,2]
[345068186,1733974234167,-500.0,0.00011098,2]
[345068187,1733974234177,-500.0,0.00011098,2]
[345068188,1733974234187,-310.45000865,0.00011098,2]
[345068189,1733974234196,-500.0,0.00011098,2]
[345068190,1733974234205,-500.0,0.00011098,2]
[345068191,1733974234214,-500.0,0.00011098,2]
[345068192,1733974234224,-500.0,0.00011098,2]
[345068193,1733974234233,-500.0,0.00011098,2]
[345068194,1733974234242,-500.0,0.00011098,2]
[345068195,1733974234251,-500.0,0.00011098,2]
[345068196,1733974234261,-500.0,0.00011098,2]
[345068197,1733974234271,-500.0,0.00011098,2]
[345068198,1733974234280,-500.0,0.00011098,2]
[345068199,1733974234289,-500.0,0.00011098,2]
[345068200,1733974234299,-500.0,0.00011098,2]
[345068201,1733974234308,-500.0,0.00011098,2]
[345068202,1733974234319,-500.0,0.00011098,2]
[345068203,1733974234328,-500.0,0.00011098,2]
[345068204,1733974234338,-500.0,0.00011098,2]
[345068205,1733974234348,-239.19724448,0.00011098,2]
[345068206,1733974234357,-500.0,0.00011098,2]
[345068207,1733974234368,-500.0,0.00011098,2]
[345068208,1733974234378,-500.0,0.00011098,2]
[345068209,1733974234387,-225.38002354,0.00011098,2]
[345068210,1733974234397,-500.0,0.00011098,2]
[345068211,1733974234407,-500.0,0.00011098,2]
[345068212,1733974234416,-500.0,0.00011098,2]
[345068213,1733974234426,-841.78,0.00011098,2]
[345068214,1733974234436,-573.54,0.00011098,2]
[345068215,1733974234445,-500.0,0.00011098,2]
[345068216,1733974234455,-500.0,0.00011098,2]
[345068217,1733974234465,-733.44,0.00011098,2]
[345068218,1733974234474,-500.0,0.00011098,2]
[345068219,1733974234484,-733.44,0.00011098,2]
[345068220,1733974234494,-733.44,0.00011098,2]
[345068221,1733974234504,-643.83,0.00011098,2]
[345068222,1733974234513,-3095.9,0.00011098,2]
[345068223,1733974234522,-4408.34,0.00011098,2]
[345068224,1733974234532,-500.0,0.00011098,2]
[345068225,1733974234541,-500.0,0.00011098,2]
[345068226,1733974234551,-500.0,0.00011098,2]
[345068227,1733974234561,-500.0,0.00011098,2]
[345068228,1733974234570,-940.1,0.00011098,2]
[345068229,1733974234580,-500.0,0.00011098,2]
[345068230,1733974234590,-500.0,0.00011098,2]
[345068231,1733974234599,-500.0,0.00011098,2]
[345068232,1733974234609,-677.2,0.00011098,2]
[345068233,1733974234618,-500.0,0.00011098,2]
[345068234,1733974234628,-500.0,0.00011098,2]
[345068235,1733974234637,-500.0,0.00011098,2]
[345068236,1733974234647,-500.0,0.00011098,2]
[345068237,1733974234658,-500.0,0.00011098,2]
[345068238,1733974234667,-500.0,0.00011098,2]
[345068239,1733974234677,-500.0,0.00011098,2]
[345068240,1733974234687,-305.82222517,0.00011098,2]
[345068241,1733974234696,-463.35492797,0.00011098,2]
[345068242,1733974234706,-376.24216919,0.00011098,2]
[345068243,1733974234716,-749.39,0.00011098,2]
[345068244,1733974234726,-500.0,0.00011098,2]
[345068245,1733974234735,-500.0,0.00011098,2]
[345068246,1733974234745,-500.0,0.00011098,2]
[345068247,1733974234755,-360.07826498,0.00011098,2]
[345068248,1733974234765,-640.56680248,0.00011098,2]
[345068249,1733974234775,-371.81645514,0.00011098,2]
[345068250,1733974234784,-500.0,0.00011098,2]
[345068251,1733974234794,-500.0,0.00011098,2]
[345068252,1733974234803,-500.0,0.00011098,2]
[345068253,1733974234813,-189.01333513,0.00011098,2]
[345068254,1733974234823,-500.0,0.00011098,2]
[345068255,1733974234832,-161.98920042,0.00011098,2]
[345068256,1733974234841,-500.0,0.00011098,2]
[345068257,1733974234849,-173.73546108,0.00011098,2]
[345068258,1733974234857,-586.51842676,0.00011098,2]
[345068259,1733974234866,-500.0,0.00011098,2]
[345068260,1733974234876,-417.31533487,0.00011098,2]
[345068261,1733974234885,-1018.86,0.00011098,2]
[345068262,1733974234894,-501.46043878,0.00011099,2]
[345068263,1733974234903,-500.0,0.00011099,2]
[345068264,1733974234912,-521.86523656,0.00011099,2]
[345068265,1733974234921,-505.73923566,0.00011099,2]
[345068266,1733974234931,-504.32477113,0.00011099,2]
[345068267,1733974234940,-504.52927945,0.00011099,2]
[345068268,1733974234949,-503.4035657,0.00011099,2]
[345068269,1733974234959,-500.0,0.00011099,2]
[345068270,1733974234968,-453.40376034,0.00011099,2]
[345068271,1733974234979,-500.0,0.00011099,2]
[345068272,1733974234989,-507.81846652,0.00011099,2]
[345068273,1733974234999,-500.0,0.00011099,2]
[345068274,1733974235008,-500.0,0.00011099,2]
[345068275,1733974235019,-432.80787748,0.00011099,2]
[345068276,1733974235028,-504.0467747,0.00011099,2]
[345068277,1733974235039,-503.84046975,0.00011099,2]
[345068278,1733974235048,-502.52125794,0.00011099,2]
[345068279,1733974235058,-359.49817175,0.00011099,2]
[345068280,1733974235067,-500.0,0.00011099,2]
[345068281,1733974235076,-500.0,0.00011099,2]
[345068282,1733974235085,-500.0,0.00011099,2]
[345068283,1733974235095,-507.52325651,0.00011099,2]
[345068284,1733974235104,-500.0,0.00011099,2]
[345068285,1733974235113,-500.0,0.00011099,2]
[345068286,1733974235123,-500.0,0.00011099,2]
[345068287,1733974235132,-500.0,0.00011099,2]
[345068288,1733974235141,-500.0,0.00011099,2]
[345068289,1733974235151,-500.0,0.00011099,2]
[345068290,1733974235160,-500.0,0.00011099,2]
[345068291,1733974235170,-500.0,0.00011099,2]
[345068292,1733974235180,-222.43,0.00011099,2]
[345068293,1733974235190,-500.0,0.00011099,2]
[345068294,1733974235200,-500.0,0.00011099,2]
[345068295,1733974235209,-500.0,0.00011099,2]
[345068296,1733974235218,-500.0,0.00011099,2]
[345068297,1733974235227,-500.0,0.00011099,2]
[345068298,1733974235237,-500.0,0.00011099,2]
[345068299,1733974235246,-163.46292966,0.00011099,2]
[345068300,1733974235255,-500.0,0.00011099,2]
[345068301,1733974235264,-500.0,0.00011099,2]
[345068302,1733974235274,-287.24980082,0.00011099,2]
[345068303,1733974235283,-500.0,0.00011099,2]
[345068304,1733974235293,-622.87033436,0.00011099,2]
[345068305,1733974235303,-500.0,0.00011099,2]
[345068306,1733974235329,-500.0,0.00011099,2]
[345068307,1733974235338,-500.0,0.00011099,2]
[345068308,1733974235348,-500.0,0.00011099,2]
[345068309,1733974235358,-500.0,0.00011099,2]
[345068310,1733974235371,-510.89448274,0.00011099,2]
[345068311,1733974235381,-391.10382246,0.00011099,2]
[345068312,1733974236293,-113.00316929,0.00011099,2]
[345068313,1733974236302,-386.22901677,0.00011099,2]
[345068351,1733974238576,-154.22971187,0.00011099,2]
[345068352,1733974238586,-246.80342586,0.00011099,2]
[345068353,1733974238598,-269.42974472,0.00011099,2]
[345068354,1733974238608,-399.8288499,0.00011099,2]
[345068355,1733974238618,-500.0,0.00011099,2]
[345068356,1733974238628,-500.0,0.00011099,2]
[345068357,1733974238638,-172.49666563,0.00011099,2]
[345068358,1733974238650,-327.50333437,0.00011099,2]
[345068359,1733974238660,-455.05666554,0.00011099,2]
[345068360,1733974238672,-44.94333446,0.00011099,2]
[345068361,1733974238682,-500.0,0.00011099,2]
[345068362,1733974238691,-500.0,0.00011099,2]
[345068363,1733974238700,-500.0,0.00011099,2]
[345068364,1733974238710,-500.0,0.00011099,2]
[345068365,1733974238719,-500.0,0.00011099,2]
[345068366,1733974238728,-500.0,0.00011099,2]
[345068367,1733974238738,-500.0,0.00011099,2]
[345068368,1733974238748,-500.0,0.00011099,2]
[345068369,1733974238757,-500.0,0.00011099,2]
[345068370,1733974238767,-500.0,0.00011099,2]
[345068371,1733974238777,-500.0,0.00011099,2]
[345068372,1733974238787,-500.0,0.00011099,2]
[345068373,1733974238796,-500.0,0.00011099,2]
[345068374,1733974238806,-500.0,0.00011099,2]
[345068375,1733974238816,-500.0,0.00011099,2]
[345068376,1733974238825,-500.0,0.00011099,2]
[345068377,1733974238844,-500.0,0.00011099,2]
[345068378,1733974238862,-500.0,0.00011099,2]
[345068379,1733974238872,-500.0,0.00011099,2]
[345068380,1733974238882,-412.34429481,0.00011099,2]
[345068381,1733974238891,-118.11068061,0.00011099,2]
[345068382,1733974238903,-347.94986872,0.00011099,2]
[345068383,1733974238915,-33.93945067,0.00011099,2]
[345068384,1733974238925,-500.0,0.00011099,2]
[345068385,1733974238934,-500.0,0.00011099,2]
[345068386,1733974238944,-174.16054933,0.00011099,2]
[345068387,1733974238956,-325.83945067,0.00011099,2]
[345068388,1733974238966,-500.0,0.00011099,2]
[345068389,1733974238976,-500.0,0.00011099,2]
[345068390,1733974238988,-205.15861702,0.00011099,2]
[345068391,1733974238997,-216.31105794,0.00011099,2]
[345068392,1733974239010,-283.68894206,0.00011099,2]
[345068393,1733974239019,-500.0,0.00011099,2]
[345068394,1733974239030,-220.186923,0.00011099,2]
[345068396,1733974240430,-279.813077,0.00011099,2]
[345068397,1733974240440,-500.0,0.00011099,2]
[345068398,1733974240450,-500.0,0.00011099,2]
[345068399,1733974240459,-425.7451962,0.00011099,2]
[345068400,1733974240752,-85.95833194,0.00011099,2]
[345068401,1733974240762,-497.39981025,0.00011099,2]
[345068402,1733974240772,-500.0,0.00011099,2]
[345068403,1733974240781,-500.0,0.00011099,2]
[345068404,1733974240791,-500.0,0.00011099,2]
[345068405,1733974240800,-500.0,0.00011099,2]
[345068406,1733974240809,-500.0,0.00011099,2]
[345068407,1733974240819,-515.39943676,0.00011099,2]
[345068408,1733974240829,-500.0,0.00011099,2]
[345068409,1733974240839,-154.29974985,0.00011099,2]
[345068410,1733974240849,-511.46773582,0.00011099,2]
[345068411,1733974240859,-500.0,0.00011099,2]
[345068412,1733974240877,-518.72134168,0.00011099,2]
[345068413,1733974240895,-506.55118136,0.00011099,2]
[345068414,1733974240905,-500.0,0.00011099,2]
[345068416,1733974240915,-493.60241234,0.00011099,2]
[345068419,1733974240927,-6.39758766,0.00011099,2]
[345068421,1733974240937,-500.26795847,0.00011099,2]
[345068423,1733974240947,-219.06268179,0.00011099,2]
[345068425,1733974240957,-500.0,0.00011099,2]
[345068426,1733974240967,-500.0,0.00011099,2]
[345068428,1733974240977,-500.0,0.00011099,2]
[345068430,1733974240989,-518.32697793,0.00011099,2]
[345068432,1733974240997,-500.0,0.00011099,2]
[345068434,1733974241006,-161.96800568,0.00011099,2]
[345068436,1733974241015,-500.40210588,0.00011099,2]
[345068438,1733974241025,-510.13079962,0.00011099,2]
[345068440,1733974241035,-500.0,0.00011099,2]
[345068442,1733974241044,-500.0,0.00011099,2]
[345068444,1733974241054,-500.0,0.00011099,2]
[345068446,1733974241065,-151.32,0.00011099,2]
[345068448,1733974241075,-500.77660829,0.00011099,2]
[345068450,1733974241085,-500.0,0.00011099,2]
[345068452,1733974241094,-500.0,0.00011099,2]
[345068454,1733974241103,-380.04341088,0.00011099,2]
[345068456,1733974241115,-119.95658912,0.00011099,2]
[345068458,1733974241125,-500.0,0.00011099,2]
[345068460,1733974241135,-500.0,0.00011099,2]
[345068462,1733974241144,-500.0,0.00011099,2]
[345068465,1733974241155,-500.0,0.00011099,2]
[345068467,1733974241165,-500.0,0.00011099,2]
[345068469,1733974241174,-500.0,0.00011099,2]
[345068471,1733974241184,-500.0,0.00011099,2]
[345068472,1733974241193,-434.44341088,0.00011099,2]
[345068475,1733974241206,-81.71898095,0.00011099,2]
[345068477,1733974241215,-618.50531639,0.00011099,2]
[345068479,1733974241224,-200.45873476,0.00011099,2]
[345068481,1733974241235,-299.54126524,0.00011099,2]
[345068483,1733974241244,-500.0,0.00011099,2]
[345068485,1733974241253,-500.0,0.00011099,2]
[345068487,1733974241263,-449.96578769,0.00011099,2]
[345068489,1733974241275,-51.68510228,0.00011099,2]
[345068491,1733974241284,-500.0,0.00011099,2]
[345068493,1733974241293,-3.14989772,0.00011099,2]
[345068553,1733974244362,-500.0,0.00010958,2]
[345068555,1733974244373,-485.17364437,0.00010958,2]
[345068556,1733974244400,-14.82635563,0.00010958,2]
[345068558,1733974244410,-500.0,0.00011098,2]
[345068560,1733974244419,-201.71789731,0.00011098,2]
[345068563,1733974244428,-500.0,0.00011098,2]
[345068565,1733974244437,-500.0,0.00011098,2]
[345068567,1733974244447,-500.0,0.00011098,2]
[345068569,1733974244456,-579.78010228,0.00011099,2]
[345068571,1733974244465,-512.07782751,0.00011099,2]
[345068573,1733974244474,-511.95604323,0.00011099,2]
[345068575,1733974244484,-512.32792314,0.00011099,2]
[345068576,1733974244493,-516.3861926,0.00011099,2]
[345068577,1733974244503,-500.0,0.00011099,2]
[345068578,1733974244512,-500.0,0.00011099,2]
[345068579,1733974244522,-376.56565452,0.00011099,2]
[345068580,1733974244531,-572.39240752,0.00011099,2]
[345068581,1733974244541,-501.67821687,0.00011099,2]
[345068582,1733974244550,-500.0,0.00011099,2]
[345068583,1733974244559,-522.23085909,0.00011099,2]
[345068584,1733974244569,-500.0,0.00011099,2]
[345068585,1733974244580,-151.04062125,0.00011099,2]
[345068586,1733974244590,-509.53238391,0.00011099,2]
[345068587,1733974244599,-500.0,0.00011099,2]
[345068588,1733974244610,-441.93657451,0.00011099,2]
[345068589,1733974244620,-526.9907457,0.00011099,2]
[345068590,1733974244629,-500.0,0.00011099,2]
[345068591,1733974244652,-500.0,0.00011099,2]
[345068592,1733974244662,-31.18096566,0.00011099,2]
[345068593,1733974244685,-468.81903434,0.00011099,2]
[345068594,1733974244695,-353.8,0.00011099,2]
[345068595,1733974244704,-500.0,0.00011099,2]
[345068597,1733974244713,-391.48704061,0.00011099,2]
[345068599,1733974244722,-500.0,0.00011099,2]
[345068601,1733974244731,-447.50128323,0.00011099,2]
[345068603,1733974244743,-52.49871677,0.00011099,2]
[345068605,1733974244752,-236.55,0.00011099,2]
[345068607,1733974244761,-515.38,0.00011099,2]
[345068609,1733974244770,-500.0,0.00011099,2]
[345068611,1733974244779,-500.0,0.00011099,2]
[345068613,1733974244788,-500.0,0.00011099,2]
[345068615,1733974244797,-500.0,0.00011099,2]
[345068617,1733974244806,-164.36101948,0.00011099,2]
[345068619,1733974244816,-500.0,0.00011099,2]
[345068621,1733974244824,-500.0,0.00011099,2]
[345068623,1733974244834,-500.0,0.00011099,2]
[345068625,1733974244843,-470.92,0.00011099,2]
[345068627,1733974244852,-500.0,0.00011099,2]
[345068630,1733974244862,-501.2719981,0.00011099,2]
[345068633,1733974244871,-500.0,0.00011099,2]
[345068636,1733974244880,-500.0,0.00011099,2]
[345068639,1733974244890,-500.0,0.00011099,2]
[345068643,1733974244899,-500.0,0.00011099,2]
[345068647,1733974244908,-500.0,0.00011099,2]
[345068650,1733974244917,-500.0,0.00011099,2]
[345068654,1733974244927,-471.99061985,0.00011099,2]
[345068658,1733974244936,-31.5871758,0.00011099,2]
[345068660,1733974244948,-468.4128242,0.00011099,2]
[345068662,1733974244959,-500.0,0.00011099,2]
[345068664,1733974244968,-500.0,0.00011099,2]
[345068666,1733974244978,-500.0,0.00011099,2]
[345068668,1733974244990,-386.54602861,0.00011099,2]
[345068670,1733974244999,-500.0,0.00011099,2]
[345068672,1733974245009,-500.0,0.00011099,2]
[345068673,1733974245018,-500.0,0.00011099,2]
[345068674,1733974245029,-500.0,0.00011099,2]
[345068675,1733974245038,-500.0,0.00011099,2]
[345068676,1733974245048,-500.0,0.00011099,2]
[345068677,1733974245059,-500.0,0.00011099,2]
[345068678,1733974245069,-500.0,0.00011099,2]
[345068679,1733974245078,-500.0,0.00011099,2]
[345068680,1733974245088,-425.67,0.00011099,2]
[345068681,1733974245097,-500.0,0.00011099,2]
[345068682,1733974245107,-500.0,0.00011099,2]
[345068683,1733974245117,-500.0,0.00011099,2]
[345068684,1733974245127,-648.67,0.00011099,2]
[345068685,1733974245142,-500.0,0.00011099,2]
[345068686,1733974245152,-500.0,0.00011099,2]
[345068687,1733974245167,-500.0,0.00011099,2]
[345068688,1733974245176,-841.78,0.00011099,2]
[345068689,1733974245186,-841.78,0.00011099,2]
[345068690,1733974245195,-841.78,0.00011099,2]
[345068691,1733974245205,-841.78,0.00011099,2]
[345068692,1733974245214,-841.78,0.00011099,2]
[345068693,1733974245223,-487.77604967,0.00011099,2]
[345068694,1733974245235,-354.00395033,0.00011099,2]
[345068695,1733974245245,-500.0,0.00011099,2]
[345068696,1733974245254,-330.43775658,0.00011099,2]
[345068697,1733974245273,-511.34224342,0.00011099,2]
[345068698,1733974245282,-187.09951136,0.00011099,2]
[345068699,1733974245291,-453.85918522,0.00011099,2]
[345068700,1733974245303,-387.92081478,0.00011099,2]
[345068701,1733974245312,-841.78,0.00011099,2]
[345068702,1733974245321,-841.78,0.00011099,2]
[345068703,1733974245330,-841.78,0.00011099,2]
[345068704,1733974245340,-221.14319517,0.00011099,2]
[345068705,1733974245349,-841.78,0.00011099,2]
[345068706,1733974245358,-841.78,0.00011099,2]
[345068707,1733974245367,-841.78,0.00011099,2]
[345068708,1733974245377,-841.78,0.00011099,2]
[345068709,1733974245395,-841.78,0.00011099,2]
[345068710,1733974245406,-841.78,0.00011099,2]
[345068711,1733974245415,-841.78,0.00011099,2]
[345068712,1733974245424,-841.78,0.00011099,2]
[345068713,1733974245434,-841.78,0.00011099,2]
[345068714,1733974245444,-841.78,0.00011099,2]
[345068715,1733974245454,-841.78,0.00011099,2]
[345068716,1733974245464,-841.95,0.00011099,2]
[345068717,1733974245473,-742.09,0.00011099,2]
[345068718,1733974245485,-742.09,0.00011099,2]
[345068719,1733974245494,-742.09,0.00011099,2]
[345068720,1733974245502,-742.09,0.00011099,2]
[345068721,1733974245510,-742.09,0.00011099,2]
[345068722,1733974245519,-669.6504075,0.00011099,2]
[345068723,1733974245530,-72.4395925,0.00011099,2]
[345068724,1733974245538,-742.09,0.00011099,2]
[345068725,1733974245546,-742.09,0.00011099,2]
[345068726,1733974245554,-191.95240617,0.00011099,2]
[345068727,1733974245564,-550.13759383,0.00011099,2]
[345068728,1733974245574,-596.66240617,0.00011099,2]
[345068729,1733974245585,-145.42759383,0.00011099,2]
[345068730,1733974245594,-742.09,0.00011099,2]
[345068731,1733974245603,-742.09,0.00011099,2]
[345068732,1733974245612,-573.54,0.00011099,2]
[345068733,1733974245621,-506.95549029,0.00011099,2]
[345068734,1733974245633,-235.13450971,0.00011099,2]
[345068735,1733974245654,-573.54,0.00011099,2]
[345068736,1733974245664,-742.09,0.00011099,2]
[345068737,1733974245673,-573.54,0.00011099,2]
[345068738,1733974245683,-503.07752317,0.00011099,2]
[345068739,1733974245692,-742.09,0.00011099,2]
[345068740,1733974245701,-500.0,0.00011099,2]
[345068741,1733974245711,-573.54,0.00011099,2]
[345068742,1733974245720,-322.97144173,0.00011099,2]
[345068743,1733974245732,-177.02855827,0.00011099,2]
[345068744,1733974245742,-742.09,0.00011099,2]
[345068745,1733974245751,-573.54,0.00011099,2]
[345068746,1733974245761,-742.09,0.00011099,2]
[345068747,1733974245771,-573.54,0.00011099,2]
[345068748,1733974245782,-500.0,0.00011099,2]
[345068749,1733974245792,-742.09,0.00011099,2]
[345068750,1733974245801,-573.54,0.00011099,2]
[345068751,1733974245811,-500.0,0.00011099,2]
[345068752,1733974245821,-742.09,0.00011099,2]
[345068753,1733974245831,-573.54,0.00011099,2]
[345068754,1733974245844,-500.0,0.00011099,2]
[345068755,1733974245854,-742.09,0.00011099,2]
[345068756,1733974245864,-500.0,0.00011099,2]
[345068757,1733974245873,-742.09,0.00011099,2]
[345068758,1733974245883,-573.54,0.00011099,2]
[345068759,1733974245904,-500.0,0.00011099,2]
[345068760,1733974245914,-742.09,0.00011099,2]
[345068761,1733974245923,-500.0,0.00011099,2]
[345068762,1733974245933,-573.54,0.00011099,2]
[345068763,1733974245942,-742.09,0.00011099,2]
[345068764,1733974245951,-500.0,0.00011099,2]
[345068765,1733974245961,-573.54,0.00011099,2]
[345068766,1733974245970,-500.0,0.00011099,2]
[345068767,1733974245981,-573.54,0.00011099,2]
[345068768,1733974245993,-742.14214892,0.00011099,2]
[345068769,1733974246008,-500.0,0.00011099,2]
[345068770,1733974246017,-573.54,0.00011099,2]
[345068771,1733974246027,-500.0,0.00011099,2]
[345068772,1733974246037,-573.54,0.00011099,2]
[345068774,1733974246047,-500.0,0.00011099,2]
[345068776,1733974246056,-573.54,0.00011099,2]
[345068778,1733974246067,-500.0,0.00011099,2]
[345068780,1733974246077,-573.54,0.00011099,2]
[345068782,1733974246086,-500.0,0.00011099,2]
[345068784,1733974246096,-573.54,0.00011099,2]
[345068786,1733974246106,-500.0,0.00011099,2]
[345068788,1733974246117,-573.54,0.00011099,2]
[345068790,1733974246127,-500.0,0.00011099,2]
[345068792,1733974246148,-573.54,0.00011099,2]
[345068794,1733974246158,-500.0,0.00011099,2]
[345068796,1733974246170,-573.54,0.00011099,2]
[345068797,1733974246179,-573.54,0.00011099,2]
[345068798,1733974246188,-573.54,0.00011099,2]
[345068799,1733974246198,-573.63903355,0.00011099,2]
[345068800,1733974246207,-500.0,0.00011099,2]
[345068801,1733974246217,-500.0,0.00011099,2]
[345068802,1733974246227,-500.0,0.00011099,2]
[345068803,1733974246236,-500.0,0.00011099,2]
[345068804,1733974246246,-500.0,0.00011099,2]
[345068805,1733974246255,-500.0,0.00011099,2]
[345068806,1733974246265,-500.0,0.00011099,2]
[345068807,1733974246275,-660.18,0.00011099,2]
[345068808,1733974246284,-500.0,0.00011099,2]
[345068809,1733974246293,-500.0,0.00011099,2]
[345068810,1733974246303,-660.18,0.00011099,2]
[345068811,1733974246312,-660.18,0.00011099,2]
[345068812,1733974246322,-500.0,0.00011099,2]
[345068813,1733974246332,-660.18,0.00011099,2]
[345068814,1733974246342,-500.0,0.00011099,2]
[345068815,1733974246352,-660.18,0.00011099,2]
[345068816,1733974246362,-500.0,0.00011099,2]
[345068817,1733974246373,-660.18,0.00011099,2]
[345068818,1733974246566,-500.0,0.00011099,2]
[345068819,1733974246578,-660.18,0.00011099,2]
[345068820,1733974246588,-500.0,0.00011099,2]
[345068821,1733974246598,-660.18,0.00011099,2]
[345068822,1733974246608,-500.0,0.00011099,2]
[345068823,1733974246618,-498.57206386,0.00011099,2]
[345068824,1733974246628,-660.18,0.00011099,2]
[345068826,1733974246645,-660.18,0.00011099,2]
[345068828,1733974246656,-660.18,0.00011099,2]
[345068830,1733974246667,-660.18,0.00011099,2]
[345068832,1733974246680,-660.18,0.00011099,2]
[345068834,1733974246689,-660.18,0.00011099,2]
[345068836,1733974246698,-660.18,0.00011099,2]
[345068838,1733974246707,-660.18,0.00011099,2]
[345068840,1733974246717,-660.18,0.00011099,2]
[345068842,1733974246726,-660.18,0.00011099,2]
[345068844,1733974246735,-660.18,0.00011099,2]
[345068846,1733974246745,-500.0,0.00011099,2]
[345068848,1733974246754,-660.18,0.00011099,2]
[345068850,1733974246763,-500.0,0.00011099,2]
[345068852,1733974246772,-500.0,0.00011099,2]
[345068854,1733974246782,-660.18,0.00011099,2]
[345068856,1733974246791,-500.0,0.00011099,2]
[345068858,1733974246800,-660.18,0.00011099,2]
[345068860,1733974246810,-500.0,0.00011099,2]
[345068862,1733974246819,-660.18,0.00011099,2]
[345068864,1733974246828,-660.40503261,0.00011099,2]
[345068866,1733974246839,-437.98704621,0.00011099,2]
[345068867,1733974246848,-733.44,0.00011099,2]
[345068869,1733974246858,-733.44,0.00011099,2]
[345068871,1733974246867,-733.44,0.00011099,2]
[345068873,1733974246878,-733.44,0.00011099,2]
[345068875,1733974246899,-733.44,0.00011099,2]
[345068877,1733974246908,-733.44,0.00011099,2]
[345068879,1733974246918,-733.44,0.00011099,2]
[345068881,1733974246927,-733.44,0.00011099,2]
[345068883,1733974246937,-733.44,0.00011099,2]
[345068885,1733974246946,-733.44,0.00011099,2]
[345068887,1733974246955,-733.44,0.00011099,2]
[345068889,1733974246965,-733.44,0.00011099,2]
[345068891,1733974246974,-733.44,0.00011099,2]
[345068893,1733974246984,-733.44,0.00011099,2]
[345068895,1733974246997,-733.44,0.00011099,2]